bitfinex/quotes_ETHUSD_20241216
["timestamp","ask_amount","ask_price","bid_price","bid_amount"]
[1734390016375,0.2398,4024.7,4023.8,0.65342679]
[1734390016376,0.27086122,4024.7,4024.1,3.0]
[1734390016760,0.2294855,4024.6,4022.9,0.8156]
[1734390016954,0.2398,4024.4,4022.9,0.8156]
[1734390017883,0.27086414,4024.3,4022.9,0.8156]
[1734390018086,0.2398,4024.3,4023.6,3.0]
[1734390018415,0.27086437,4024.2,4022.9,0.10120507]
[1734390018692,0.22930479,4024.1,4022.7,0.55]
[1734390018895,0.2398,4024.0,4022.8,0.13509]
[1734390019821,0.2398,4024.0,4023.3,3.0]
[1734390020037,0.2398,4024.0,4022.8,0.13509]
[1734390020172,0.2398,4024.0,4023.3,3.0]
[1734390020836,0.2398,4024.0,4022.8,0.13509]
[1734390021122,0.2398,4024.0,4022.8,0.10365091]
[1734390021316,0.2398,4024.0,4022.7,0.55]
[1734390021488,0.2398,4024.0,4023.3,3.0]
[1734390022895,0.2398,4024.0,4022.7,0.10236212]
[1734390023098,0.2398,4024.0,4023.3,3.0]
[1734390023294,0.2398,4024.0,4023.1,3.0]
[1734390023496,0.2398,4024.0,4022.4,0.55]
[1734390023497,0.2398,4024.0,4022.4,0.10129659]
[1734390023718,0.2398,4024.0,4022.5,0.55]
[1734390024700,0.2398,4024.0,4022.9,3.0]
[1734390025214,0.2398,4024.0,4022.5,0.55]
[1734390025384,0.2398,4024.0,4022.9,3.0]
[1734390025573,0.2398,4024.0,4022.5,0.55]
[1734390025820,0.2398,4024.0,4022.9,3.0]
[1734390026315,0.2398,4024.0,4022.5,0.55]
[1734390026316,0.2398,4023.8,4022.5,0.55]
[1734390026517,0.03106873,4023.7,4022.9,3.0]
[1734390026678,1.02364735,4024.3,4022.5,0.55]
[1734390026679,0.2398,4024.1,4022.5,0.55]
[1734390026879,0.2398,4023.9,4022.9,3.0]
[1734390027128,0.2398,4023.7,4022.9,3.0]
[1734390027329,0.2398,4023.7,4022.5,0.55]
[1734390027882,0.2398,4023.7,4022.9,3.0]
[1734390028619,0.2398,4023.7,4022.5,0.55]
[1734390028824,0.2398,4023.7,4022.9,3.0]
[1734390029030,0.2398,4023.7,4022.5,0.55]
[1734390029825,0.2398,4023.7,4022.9,3.0]
[1734390030740,0.2398,4023.7,4022.5,0.55]
[1734390030883,0.2398,4023.7,4022.9,3.0]
[1734390031318,0.2398,4023.7,4022.5,0.55]
[1734390031682,0.2398,4023.7,4022.9,3.0]
[1734390032736,0.2398,4023.7,4022.5,0.55]
[1734390033537,0.2398,4023.7,4022.9,3.0]
[1734390033832,0.2398,4023.7,4022.5,0.55]
[1734390034176,0.2398,4023.7,4022.9,3.0]
[1734390035269,0.2398,4023.7,4022.5,0.55]
[1734390035438,0.2398,4023.7,4022.9,3.0]
[1734390035970,0.2398,4023.7,4022.5,0.55]
[1734390037135,0.22937377,4023.6,4022.9,3.0]
[1734390037334,0.2398,4023.5,4022.9,3.0]
[1734390037656,0.2398,4023.5,4022.5,0.55]
[1734390038035,0.2398,4023.5,4022.9,3.0]
[1734390038224,0.2398,4023.5,4022.4,0.10129659]
[1734390038576,0.2398,4023.5,4022.9,3.0]
[1734390039223,0.2398,4023.5,4022.4,0.10129659]
[1734390039423,0.2398,4023.3,4022.5,3.0]
[1734390039628,0.2398,4023.1,4022.4,0.10129659]
[1734390039878,0.2398,4023.1,4022.5,3.0]
[1734390040078,0.2398,4023.1,4022.4,0.10129659]
[1734390040572,0.2398,4023.1,4022.5,3.0]
[1734390041479,0.2398,4023.1,4022.4,0.10129659]
[1734390041634,0.2398,4023.1,4022.5,3.0]
[1734390041840,0.2398,4023.1,4022.4,0.10129659]
[1734390042172,0.2398,4023.1,4022.5,3.0]
[1734390042541,0.2398,4023.1,4022.4,0.10129659]
[1734390042761,0.2398,4023.1,4022.5,3.0]
[1734390042966,0.2398,4023.1,4022.4,0.10129659]
[1734390043239,0.2398,4023.1,4022.8,3.0]
[1734390043467,0.2398,4023.4,4022.9,0.3]
[1734390043644,0.2398,4023.4,4022.9,0.02332847]
[1734390044079,0.2398,4023.7,4023.0,1.10188711]
[1734390044603,0.14136448,4024.5,4023.0,1.10188711]
[1734390044604,0.2398,4024.0,4023.0,1.10188711]
[1734390044747,0.22992284,4023.9,4023.0,1.10188711]
[1734390044950,0.2398,4024.0,4023.1,0.41018871]
[1734390044951,0.22992284,4023.8,4023.1,0.41018871]
[1734390045177,0.2398,4024.0,4023.0,1.10188711]
[1734390045381,0.41404098,4023.9,4023.0,1.10188711]
[1734390045586,0.41404098,4023.8,4023.0,1.10188711]
[1734390045888,0.18401819,4023.7,4023.0,4.10188711]
[1734390046200,0.2398,4024.0,4023.0,1.10188711]
[1734390046369,0.41419692,4023.9,4023.0,4.10188711]
[1734390046549,0.41419692,4023.8,4023.1,0.41018871]
[1734390046742,0.2398,4024.0,4023.1,0.41018871]
[1734390047094,0.41420499,4023.9,4023.1,0.41018871]
[1734390047391,0.18409111,4023.8,4023.1,0.41018871]
[1734390047595,0.2398,4024.0,4023.1,0.41018871]
[1734390047757,0.41427423,4023.9,4023.0,1.10188711]
[1734390047949,0.2398,4024.0,4023.1,3.0]
[1734390047950,0.18412204,4023.8,4023.1,3.0]
[1734390048147,0.2398,4024.0,4023.1,3.0]
[1734390048348,0.41431707,4023.9,4023.2,3.0]
[1734390048704,0.2398,4024.0,4023.0,1.10188711]
[1734390048887,0.2398,4024.3,4023.5,3.0]
[1734390049088,0.41434427,4024.2,4023.5,3.0]
[1734390049285,0.2398,4024.3,4023.6,1.15071871]
[1734390049597,0.36830602,4024.6,4023.6,1.10188711]
[1734390049598,0.2398,4024.6,4023.6,1.10188711]
[1734390049897,0.41425736,4024.5,4023.6,1.10188711]
[1734390050054,0.18411438,4024.4,4023.7,3.0]
[1734390050251,0.2398,4024.6,4023.7,3.0]
[1734390050252,0.2398,4024.6,4023.7,3.55]
[1734390050904,0.2398,4024.6,4023.7,0.89018711]
[1734390051142,0.2398,4025.1,4023.8,0.50770675]
[1734390051579,0.2398,4025.1,4024.2,3.0]
[1734390051899,0.2398,4025.1,4024.0,0.55]
[1734390051900,0.2398,4025.1,4023.9,0.7617]
[1734390052099,0.2398,4025.1,4024.0,0.36349183]
[1734390052249,0.2398,4025.1,4024.2,3.0]
[1734390052450,0.2398,4025.1,4024.3,0.02330477]
[1734390052907,1.55,4025.5,4024.3,0.02330477]
[1734390052908,0.2398,4025.4,4024.6,3.7617]
[1734390053071,1.55,4025.5,4025.2,3.0]
[1734390053402,2.56369806,4026.8,4024.7,0.89018711]
[1734390053403,1.02364735,4026.7,4025.5,3.7617]
[1734390053695,0.41343567,4026.6,4025.6,3.02328431]
[1734390053907,1.02364735,4027.0,4025.6,3.0]
[1734390054202,1.55607531,4026.9,4025.5,0.7617]
[1734390054399,0.29266137,4026.9,4025.5,0.7617]
[1734390054546,1.02364735,4027.2,4025.5,0.7617]
[1734390054749,0.18350203,4027.1,4025.5,1.10188711]
[1734390054968,2.24032268,4027.2,4025.5,1.10188711]
[1734390054969,1.03317392,4027.0,4025.6,0.34018711]
[1734390055167,0.22937726,4027.0,4025.6,0.34018711]
[1734390055409,1.02364735,4027.2,4025.6,0.34018711]
[1734390055670,0.70502339,4027.1,4025.6,0.34018711]
[1734390055869,0.4124494,4027.0,4025.6,0.34018711]
[1734390056070,0.29257399,4027.1,4025.6,0.34018711]
[1734390056297,1.02364735,4027.3,4025.6,0.34018711]
[1734390056501,0.41202942,4027.2,4025.6,0.34018711]
[1734390056821,1.26091793,4027.1,4025.6,0.34018711]
[1734390056972,1.02364735,4027.3,4025.6,0.34018711]
[1734390057173,1.03189139,4027.2,4025.6,0.34018711]
[1734390057403,0.20555387,4027.1,4025.6,0.34018711]
[1734390057607,1.02364735,4027.5,4025.6,0.34018711]
[1734390057808,0.18300431,4027.4,4025.7,0.57328204]
[1734390057989,0.84853352,4027.8,4025.8,0.34018711]
[1734390057990,1.02364735,4027.6,4025.8,0.34018711]
[1734390058213,0.5,4028.8,4025.8,0.34018711]
[1734390058214,1.02364735,4027.7,4025.8,0.34018711]
[1734390058392,1.02364735,4027.8,4025.8,0.34018711]
[1734390058723,0.03104314,4028.1,4025.8,0.50770353]
[1734390058724,0.25591184,4027.7,4025.8,0.50770353]
[1734390058878,0.03104314,4027.8,4025.8,3.50770353]
[1734390059072,0.03104314,4027.8,4025.9,3.8212]
[1734390059323,1.02364735,4028.1,4026.0,0.91346423]
[1734390059481,0.18278841,4028.0,4026.0,0.89018711]
[1734390059816,0.03104006,4028.1,4026.3,3.0]
[1734390059975,0.03104006,4028.1,4026.4,0.34018711]
[1734390060175,0.03104006,4028.1,4026.5,0.8212]
[1734390060428,0.03104006,4028.1,4026.5,1.16138711]
[1734390060921,1.02364735,4028.6,4026.7,0.55]
[1734390061113,0.18279116,4028.5,4026.9,3.0]
[1734390061272,1.53547103,4028.9,4026.9,3.0]
[1734390061273,1.02364735,4028.9,4027.0,0.02326294]
[1734390061478,0.41126914,4028.8,4027.0,0.02326294]
[1734390061673,1.02364735,4029.1,4027.0,0.36345005]
[1734390062021,0.69781908,4029.0,4027.2,0.8212]
[1734390062242,0.41087265,4028.9,4027.2,0.8212]
[1734390062377,0.25591184,4029.0,4027.2,0.8212]
[1734390062725,0.03103213,4029.1,4027.2,0.8212]
[1734390063189,1.38849248,4029.5,4027.5,3.0]
[1734390063389,1.28696728,4029.4,4027.2,0.8212]
[1734390063590,0.41045222,4029.3,4027.2,0.8212]
[1734390063836,0.03103213,4029.2,4027.2,0.8212]
[1734390064010,0.03103213,4029.2,4027.3,0.21502779]
[1734390064208,0.01960044,4029.3,4027.3,0.21502779]
[1734390064394,0.05063258,4029.3,4027.6,3.0]
[1734390064598,0.05063258,4029.3,4027.3,0.21502779]
[1734390064811,0.01960044,4029.3,4027.6,3.0]
[1734390065324,0.01960044,4029.3,4027.6,3.37650278]
[1734390065890,0.01960044,4029.3,4027.6,0.37650278]
[1734390066145,0.01960044,4029.3,4027.6,3.0]
[1734390066313,0.01960044,4029.3,4027.3,0.21502779]
[1734390066517,0.01960044,4029.3,4028.1,3.0]
[1734390066727,0.01960044,4029.3,4028.2,3.0]
[1734390066986,0.01960044,4029.3,4028.3,0.8212]
[1734390067206,0.01960044,4029.3,4028.4,0.02323969]
[1734390067883,0.01960044,4029.3,4028.4,0.02324061]
[1734390068322,0.01960044,4029.3,4028.4,0.36342772]
[1734390068483,0.01960044,4029.3,4027.9,0.8212]
[1734390068683,0.01960044,4029.3,4028.2,3.0]
[1734390068938,0.01960044,4029.3,4028.0,0.55]
[1734390069100,0.01960044,4029.3,4028.2,3.0]
[1734390069516,0.01960044,4029.3,4028.0,0.57324062]
[1734390069718,0.01960044,4029.3,4028.2,3.0]
[1734390070035,0.01960044,4029.3,4028.0,0.89018711]
[1734390070191,0.01960044,4029.3,4028.2,3.0]
[1734390070684,0.01960044,4029.3,4028.2,3.34018711]
[1734390071633,0.01960044,4029.3,4028.3,1.71138711]
[1734390071836,0.01960044,4029.3,4028.6,3.0]
[1734390072126,0.01960044,4029.3,4028.7,0.34018711]
[1734390072741,0.01960044,4029.3,4028.8,0.55]
[1734390072950,0.01960044,4029.3,4028.8,3.89018711]
[1734390073103,0.01960044,4029.3,4028.9,0.75475776]
[1734390073304,0.39511636,4031.6,4028.5,0.7567]
[1734390073504,0.44069922,4031.5,4028.6,3.0]
[1734390073828,0.18208161,4031.4,4028.5,0.7567]
[1734390074141,0.44069932,4031.3,4028.5,1.06853818]
[1734390074341,0.40968374,4031.2,4028.5,1.06853818]
[1734390074660,0.44069932,4031.1,4028.6,0.51536059]
[1734390074808,0.40968374,4031.0,4028.6,0.51536059]
[1734390075114,0.36416341,4031.7,4028.6,0.51536059]
[1734390075115,0.44069933,4030.9,4028.6,0.51536059]
[1734390075316,0.40968374,4030.8,4028.7,3.55]
[1734390075524,4.241308,4031.8,4028.7,3.86183818]
[1734390075525,0.40968374,4030.7,4028.7,3.86183818]
[1734390075724,0.40968374,4030.6,4028.8,0.79404424]
[1734390075945,0.91416341,4031.6,4029.0,0.7736]
[1734390076246,0.55,4031.4,4029.0,1.08543818]
[1734390076431,0.41010149,4031.3,4029.0,1.08543818]
[1734390076615,0.41010149,4031.2,4029.1,0.31183818]
[1734390076816,0.41010149,4031.1,4029.3,3.0]
[1734390077129,1.05466148,4032.3,4029.4,3.0]
[1734390077130,0.41010149,4031.0,4029.4,3.0]
[1734390077448,1.05466148,4032.3,4029.4,0.7736]
[1734390077449,0.41010149,4030.9,4029.4,0.7736]
[1734390077647,1.02364735,4032.3,4029.4,3.7736]
[1734390077648,0.41010149,4030.8,4029.4,3.7736]
[1734390077807,0.03101053,4031.5,4029.4,1.08543818]
[1734390078144,0.41030304,4031.4,4029.4,4.08543818]
[1734390078446,0.41030304,4031.3,4029.5,3.41926835]
[1734390078744,0.41030304,4031.2,4029.5,3.41926835]
[1734390078947,0.41030304,4031.1,4029.6,0.7736]
[1734390079250,0.7736,4032.4,4029.6,0.7736]
[1734390079251,0.4106325,4031.0,4029.6,3.7736]
[1734390079465,0.18264392,4030.9,4029.6,0.7736]
[1734390079611,0.41094897,4030.9,4029.8,3.0]
[1734390079806,0.18264647,4030.8,4029.6,0.7736]
[1734390080007,0.36528809,4032.0,4029.6,0.7736]
[1734390080217,0.7736,4032.4,4029.7,3.0]
[1734390080218,0.55,4031.8,4029.7,3.0]
[1734390080475,0.55,4031.6,4029.3,0.88084528]
[1734390080761,0.80747593,4031.5,4029.3,0.88084528]
[1734390080912,0.77646229,4031.4,4029.3,0.88084528]
[1734390081107,0.80747594,4031.3,4029.3,0.88084528]
[1734390081354,0.77646229,4031.2,4029.3,0.88084528]
[1734390081509,0.77646229,4031.1,4029.3,0.88084528]
[1734390081710,0.77646229,4031.0,4029.3,0.88084528]
[1734390081909,0.77646229,4030.9,4029.3,0.88084528]
[1734390082118,0.77646229,4030.8,4029.3,0.88084528]
[1734390082319,0.77646229,4030.7,4029.3,0.88084528]
[1734390082659,0.18274415,4030.6,4029.3,0.10724528]
[1734390082808,0.77737668,4030.5,4029.6,3.0]
[1734390083155,0.13574728,4031.7,4029.1,0.55]
[1734390083156,0.18309458,4030.4,4029.1,0.55]
[1734390083450,0.41196282,4030.3,4029.2,0.475382]
[1734390083747,0.03101369,4032.3,4029.2,0.475382]
[1734390083748,0.18309458,4030.2,4029.6,3.0]
[1734390083950,0.36619074,4031.4,4029.8,3.0]
[1734390084154,0.77812198,4031.3,4029.5,0.1260348]
[1734390084354,0.77812198,4031.2,4029.7,3.0]
[1734390084547,0.77812198,4031.1,4029.7,3.0]
[1734390084869,0.77812198,4031.0,4029.7,3.0]
[1734390085029,0.77812198,4030.9,4029.7,3.0]
[1734390085353,0.77812198,4030.8,4029.8,3.0]
[1734390085523,0.77812198,4030.7,4029.5,0.1260348]
[1734390085724,0.77812198,4030.6,4029.7,0.7736]
[1734390085945,0.8046137,4032.4,4029.7,0.7736]
[1734390085946,0.77817876,4030.5,4029.7,0.7736]
[1734390086120,0.77848111,4030.4,4029.8,3.0]
[1734390086316,0.77847837,4030.3,4029.7,0.7736]
[1734390086545,0.41198802,4030.2,4029.7,0.7736]
[1734390086864,0.18313778,4030.1,4029.8,3.0]
[1734390087025,0.18313778,4030.0,4029.8,3.0]
[1734390087228,0.18313778,4029.9,4029.8,3.0]
[1734390087651,0.18313778,4029.9,4029.8,6.944032]
[1734390087853,0.18313778,4029.9,4029.5,0.1260348]
[1734390088037,0.36648786,4031.6,4029.7,3.0]
[1734390088220,0.77939629,4031.5,4029.9,3.0]
[1734390088573,0.77939629,4031.4,4029.5,0.8996348]
[1734390088729,0.77939629,4031.3,4029.5,0.8996348]
[1734390088931,0.77939629,4031.2,4029.5,0.8996348]
[1734390089256,0.78055485,4031.1,4029.2,1.19302087]
[1734390089562,1.05465935,4032.3,4029.2,1.19302087]
[1734390089563,0.78055485,4031.0,4029.2,1.19302087]
[1734390089765,0.78055485,4030.9,4029.2,1.19302087]
[1734390090065,0.78055485,4030.8,4029.2,1.19302087]
[1734390090242,0.78055485,4030.7,4029.2,1.19302087]
[1734390090445,0.78055485,4030.6,4028.8,0.7736]
[1734390090650,0.78055485,4030.5,4028.6,0.31183818]
[1734390090850,0.78055485,4030.4,4028.6,0.31183818]
[1734390091052,0.81157585,4030.3,4028.6,0.31183818]
[1734390091248,0.78055485,4030.2,4028.6,0.31183818]
[1734390091563,0.78055485,4030.1,4028.6,0.31183818]
[1734390091774,0.78055485,4030.0,4028.6,0.31183818]
[1734390091914,0.78055485,4029.9,4029.2,3.0]
[1734390092121,0.78055485,4029.8,4029.2,3.0]
[1734390092330,1.05466951,4031.2,4029.2,3.0]
[1734390092331,0.59689489,4029.7,4029.2,3.0]
[1734390092618,0.78103019,4029.6,4029.2,3.0]
[1734390092818,0.78108549,4029.5,4029.2,3.0]
[1734390093061,0.78108549,4029.4,4028.6,0.31183818]
[1734390093358,1.05466951,4031.2,4028.6,0.31183818]
[1734390093359,0.78108549,4029.3,4029.2,3.0]
[1734390093529,0.78108549,4029.3,4028.6,0.42047545]
[1734390093732,0.58102243,4030.9,4028.6,0.42047545]
[1734390093930,0.94179224,4030.8,4028.6,0.42047545]
[1734390094131,2.20632895,4030.7,4028.6,0.42047545]
[1734390094465,0.78139851,4030.6,4028.7,3.0]
[1734390094619,1.18411433,4030.8,4028.8,0.31183818]
[1734390094620,0.78139851,4030.5,4028.8,0.31183818]
[1734390094825,0.78139851,4030.4,4028.8,0.62148781]
[1734390095034,0.78139851,4030.3,4028.8,0.62148781]
[1734390095235,0.78139851,4030.2,4028.8,0.62148781]
[1734390095430,1.02364735,4030.7,4028.8,0.62148781]
[1734390095431,0.78139851,4030.1,4028.8,0.62148781]
[1734390095772,1.02364735,4030.7,4028.8,0.62148781]
[1734390095773,0.59747956,4030.0,4028.8,0.62148781]
[1734390096064,0.78148436,4029.9,4028.8,3.31183818]
[1734390096267,0.78148436,4029.8,4028.8,3.31183818]
[1734390096570,0.78148436,4029.7,4028.8,3.31183818]
[1734390096732,0.78148436,4029.6,4028.8,0.31183818]
[1734390096931,0.78148436,4029.5,4028.8,3.31183818]
[1734390097133,0.78148436,4029.4,4028.8,3.31183818]
[1734390097440,0.78148436,4029.3,4028.8,0.31183818]
[1734390097767,1.02364735,4030.6,4028.8,0.31183818]
[1734390097768,0.78148436,4029.2,4028.8,0.31183818]
[1734390097931,0.78148436,4029.1,4028.8,3.31183818]
[1734390098132,0.41380463,4029.0,4028.8,3.31183818]
[1734390098369,0.41380463,4028.9,4028.8,3.31183818]
[1734390098538,0.41380463,4028.9,4028.8,0.31183818]
[1734390099160,0.41391676,4028.9,4028.8,0.31183818]
[1734390101747,0.18411693,4028.9,4028.8,0.31183818]
[1734390102372,1.02364735,4030.1,4029.1,3.0]
[1734390102575,1.88803714,4030.0,4029.1,3.0]
[1734390102774,1.88803714,4030.0,4028.8,0.31183818]
[1734390102775,0.25591184,4030.0,4028.8,0.31183818]
[1734390103077,1.4023878,4029.9,4029.2,3.0]
[1734390103296,1.4023878,4029.9,4028.6,0.10863727]
[1734390103297,0.55270086,4029.8,4028.6,0.10863727]
[1734390103580,1.27955919,4030.0,4029.2,3.0]
[1734390103581,0.55270086,4029.7,4029.2,3.0]
[1734390103785,0.55270086,4029.6,4029.2,3.0]
[1734390103942,0.55270086,4029.5,4028.4,0.55]
[1734390104144,1.27955919,4030.0,4028.4,0.55]
[1734390104145,0.55270086,4029.4,4029.2,3.0]
[1734390104365,0.18423364,4029.3,4029.2,3.0]
[1734390104884,0.18423364,4029.3,4028.4,0.86183818]
[1734390105086,0.18423364,4029.2,4028.4,0.86183818]
[1734390105279,0.18423364,4029.1,4029.0,3.0]
[1734390105486,0.18423364,4029.1,4028.4,0.86183818]
[1734390105684,1.02364735,4029.8,4029.0,3.0]
[1734390105845,0.36838826,4029.6,4029.0,3.0]
[1734390106046,0.41443867,4029.5,4029.0,3.0]
[1734390106285,0.41443867,4029.4,4029.0,3.0]
[1734390106470,0.41443867,4029.3,4029.0,3.0]
[1734390106684,0.41443867,4029.2,4028.4,0.86183818]
[1734390106874,0.18419505,4029.1,4029.0,3.0]
[1734390107042,0.18419505,4029.1,4028.5,0.31183818]
[1734390107043,0.18419505,4029.1,4028.9,3.0]
[1734390107248,0.18419505,4029.0,4028.9,3.0]
[1734390107668,0.18419505,4029.0,4028.5,0.31183818]
[1734390107880,0.28150302,4029.7,4028.9,3.0]
[1734390108071,0.76291812,4029.6,4028.9,3.0]
[1734390108273,0.47885598,4029.5,4028.9,3.0]
[1734390108500,0.47885598,4029.4,4028.9,3.0]
[1734390108708,0.47885598,4029.3,4028.3,0.12299192]
[1734390108870,0.18417538,4029.2,4028.9,3.0]
[1734390109072,0.18417538,4029.1,4028.9,3.0]
[1734390109273,0.29466772,4029.7,4028.9,3.0]
[1734390109471,0.29466772,4029.7,4028.1,1.08543818]
[1734390109472,1.02364735,4029.5,4028.1,1.08543818]
[1734390109687,2.12949503,4029.4,4028.1,1.08543818]
[1734390109867,0.85178361,4029.3,4028.1,1.08543818]
[1734390110067,0.0310251,4029.4,4028.1,1.08543818]
[1734390110269,0.85177539,4029.3,4028.1,1.08543818]
[1734390110601,0.19064478,4029.2,4028.1,1.08543818]
[1734390110768,0.19064478,4029.2,4028.1,1.19316371]
[1734390111094,0.19064478,4029.2,4028.2,0.31183818]
[1734390111302,1.45324869,4029.6,4028.2,0.31183818]
[1734390111303,0.18416772,4029.1,4028.2,0.31183818]
[1734390111501,0.18416772,4029.0,4028.6,3.0]
[1734390111703,0.29461711,4029.3,4028.2,0.31183818]
[1734390111862,0.47877806,4029.2,4028.6,3.0]
[1734390112067,0.18414658,4029.1,4028.2,0.31183818]
[1734390112293,0.18414658,4029.0,4028.2,0.31183818]
[1734390112607,1.02364735,4029.4,4028.2,0.31183818]
[1734390112608,0.18414658,4028.9,4028.2,0.31183818]
[1734390112809,0.29462161,4029.3,4028.6,3.0]
[1734390112966,0.98418738,4029.2,4028.2,0.31183818]
[1734390113168,0.478746,4029.1,4028.2,0.31183818]
[1734390113384,0.1318269,4029.2,4028.2,0.31183818]
[1734390113385,0.18413308,4029.0,4028.4,3.0]
[1734390113582,0.18414851,4028.9,4028.4,3.0]
[1734390113798,0.1318269,4029.2,4028.4,3.0]
[1734390113995,0.55930409,4029.1,4028.4,3.0]
[1734390114200,0.41428811,4029.0,4028.2,0.31183818]
[1734390114371,0.41426894,4028.9,4027.8,0.31183818]
[1734390114575,0.41426344,4028.8,4027.8,0.42381315]
[1734390114771,0.18413097,4028.7,4028.2,3.0]
[1734390115085,0.29460522,4029.0,4028.2,3.0]
[1734390115267,0.61057407,4028.9,4027.9,0.31183818]
[1734390115472,0.18410741,4028.8,4028.2,0.31183818]
[1734390115702,0.19633251,4028.9,4028.2,0.31183818]
[1734390115917,0.18410443,4028.8,4028.2,0.31183818]
[1734390116124,0.43953069,4029.1,4028.2,0.31183818]
[1734390116425,0.4264936,4029.0,4028.2,0.31183818]
[1734390116710,0.4264936,4029.0,4028.2,3.31183818]
[1734390116711,0.41430985,4028.9,4028.2,3.31183818]
[1734390117011,0.41427525,4028.8,4027.3,0.31183818]
[1734390117231,0.73992811,4028.7,4027.1,0.10908467]
[1734390117520,0.73992811,4028.7,4026.6,0.30964963]
[1734390117521,1.02364735,4028.4,4026.7,0.31183818]
[1734390117712,0.73993172,4028.3,4026.7,0.31183818]
[1734390118025,1.56063921,4028.2,4026.7,0.31183818]
[1734390118318,0.44531233,4028.1,4026.7,0.31183818]
[1734390118487,0.41427525,4028.0,4026.7,0.31183818]
[1734390118694,0.1841377,4027.9,4026.7,0.31183818]
[1734390118905,0.03103708,4028.1,4026.7,0.31183818]
[1734390119225,0.41397589,4028.0,4026.7,0.31183818]
[1734390119435,0.18398924,4027.9,4026.7,0.31183818]
[1734390119590,0.29462032,4028.4,4026.7,0.31183818]
[1734390119591,0.29428932,4028.3,4026.7,0.31183818]
[1734390119791,0.58552768,4028.2,4026.7,0.31183818]
[1734390119992,0.41384414,4028.1,4026.7,0.31183818]
[1734390120298,0.41384414,4028.0,4026.7,0.31183818]
[1734390120629,0.18393043,4027.9,4026.7,0.31183818]
[1734390120800,0.18393043,4027.8,4026.7,0.31183818]
[1734390121005,0.0310371,4028.1,4026.7,0.31183818]
[1734390121194,0.41394496,4028.0,4027.1,3.0]
[1734390121394,0.0310371,4028.1,4027.1,3.0]
[1734390121395,0.41394496,4027.9,4027.1,3.0]
[1734390121598,0.17168354,4028.2,4027.1,3.0]
[1734390121791,0.4137411,4028.1,4027.1,3.0]
[1734390122005,0.4137411,4028.0,4027.1,3.0]
[1734390122202,0.03103712,4028.4,4026.7,0.31183818]
[1734390122409,0.41359585,4028.3,4027.1,3.0]
[1734390122695,0.44463295,4028.2,4027.1,3.0]
[1734390122942,0.41359585,4028.1,4027.1,3.0]
[1734390123249,0.18382216,4028.0,4027.1,3.0]
[1734390123528,0.18382216,4027.9,4027.1,3.0]
[1734390123759,0.03103712,4028.2,4026.7,0.31183818]
[1734390124044,0.41342403,4028.1,4026.8,0.30964963]
[1734390124208,0.1837451,4028.0,4026.9,0.31183818]
[1734390124412,0.20148296,4028.3,4026.9,3.31183818]
[1734390124609,0.41330115,4028.2,4027.7,3.0]
[1734390124809,0.49043691,4029.0,4028.0,3.0]
[1734390125005,1.02364735,4029.6,4028.0,3.31183818]
[1734390125307,0.18375624,4028.9,4028.0,0.31183818]
[1734390125526,1.68516983,4029.6,4028.0,3.31183818]
[1734390125706,1.55784988,4029.5,4028.0,3.31183818]
[1734390125907,0.4135885,4029.4,4028.0,3.31183818]
[1734390126095,0.62346433,4029.3,4028.0,3.31183818]
[1734390126310,0.4135885,4029.2,4028.0,3.31183818]
[1734390126659,0.4135885,4029.1,4028.0,3.31183818]
[1734390126943,0.1838172,4029.0,4028.0,0.31183818]
[1734390127106,0.1839302,4028.9,4028.2,3.0]
[1734390127307,0.66152248,4029.7,4028.3,0.33118382]
[1734390127543,1.53547103,4030.1,4028.6,3.0]
[1734390127544,0.41388245,4029.6,4028.6,3.0]
[1734390127761,0.29400999,4030.0,4028.7,3.0]
[1734390127939,1.53547103,4030.6,4028.7,3.0]
[1734390127940,0.4139656,4029.9,4028.7,3.0]
[1734390128118,0.66197918,4030.5,4028.7,0.31183818]
[1734390128119,0.18398486,4029.8,4028.7,0.31183818]
[1734390128320,0.29400999,4030.4,4028.7,0.31183818]
[1734390128321,0.29439109,4030.4,4028.7,0.31183818]
[1734390128637,0.58258784,4030.3,4028.8,0.55]
[1734390128844,0.28449109,4030.8,4028.9,1.11043818]
[1734390129038,0.41403759,4030.7,4028.9,1.11043818]
[1734390129217,0.41403759,4030.6,4029.2,3.0]
[1734390129418,0.41403759,4030.5,4029.2,3.0]
[1734390129631,0.03101788,4031.0,4028.9,1.11043818]
[1734390129632,0.18401597,4030.4,4028.9,1.11043818]
[1734390129828,0.1839967,4030.3,4029.2,3.0]
[1734390130028,1.05466523,4031.0,4029.2,3.0]
[1734390130226,2.54253627,4030.9,4029.2,3.0]
[1734390130428,0.78195657,4030.8,4029.2,3.0]
[1734390130652,0.78195657,4030.8,4027.1,0.51357125]
[1734390130653,1.02364735,4030.5,4028.4,0.31183818]
[1734390130865,3.89451105,4030.4,4028.4,0.31183818]
[1734390131046,1.02364735,4030.2,4028.4,0.31183818]
[1734390131355,0.44495876,4030.1,4028.4,0.31183818]
[1734390131553,0.41391579,4030.0,4028.4,0.31183818]
[1734390131728,0.41391579,4029.9,4028.7,3.0]
[1734390131930,0.21499528,4029.8,4028.4,0.31183818]
[1734390132117,0.18397092,4029.7,4028.4,0.31183818]
[1734390132322,0.1839625,4029.6,4028.4,0.31183818]
[1734390132515,1.05467171,4030.2,4028.7,3.0]
[1734390132714,3.89220753,4030.1,4028.4,0.31183818]
[1734390132942,1.66450218,4030.0,4028.4,0.31183818]
[1734390133145,1.66450218,4030.0,4028.0,0.11229427]
[1734390133146,3.33663687,4029.9,4028.0,0.11229427]
[1734390133357,3.33663687,4029.9,4027.9,0.31183818]
[1734390133358,3.96554909,4029.8,4027.9,0.31183818]
[1734390133525,1.02364735,4029.6,4027.9,0.31183818]
[1734390133720,0.99504942,4029.5,4027.9,0.31183818]
[1734390133933,1.02364735,4029.2,4027.1,0.31183818]
[1734390134160,1.02364735,4028.8,4027.1,0.31183818]
[1734390134331,2.32024272,4028.7,4027.1,0.31183818]
[1734390134548,0.41391828,4028.6,4027.1,0.31183818]
[1734390134757,0.41391828,4028.5,4027.2,0.332634]
[1734390134956,2.04729471,4029.2,4027.2,0.332634]
[1734390134957,1.02364735,4029.4,4027.3,1.11513818]
[1734390135266,0.41391432,4029.3,4027.4,0.332634]
[1734390135470,0.41391432,4029.2,4027.5,0.31183818]